fUST/lending_fUST_20251113
["ID","MTS","AMOUNT","RATE_DAILY","PERIOD"]
[393781978,1762981517616,-783.975635,0.0004289,120]
[393781980,1762981517658,-783.975635,0.0004289,120]
[393781982,1762981517702,-783.975635,0.0004289,120]
[393781984,1762981517744,-152.248974,0.0004289,30]
[393781986,1762981517787,-151.728387,0.0004289,60]
[393781988,1762981517824,-151.0,0.0004289,120]
[393781990,1762981517860,-151.0,0.0004289,120]
[393781991,1762981517899,-151.0,0.0004289,120]
[393781994,1762981517939,-151.0,0.0004289,120]
[393781996,1762981517982,-151.0,0.000429,18]
[393781998,1762981518026,-151.0,0.000429,10]
[393782000,1762981518070,-151.0,0.000429,13]
[393782001,1762981518115,-177.0,0.00044879,120]
[393782003,1762981518158,-154.43,0.000449,14]
[393782006,1762981518203,-151.0,0.000449,20]
[393782007,1762981518247,-151.0,0.000449,10]
[393782010,1762981518297,-160.92,0.00045,14]
[393782012,1762981518342,-1220.17,0.00045,14]
[393782013,1762981518387,-162.73,0.00045,30]
[393782015,1762981518432,-1998.8729828,0.00045,120]
[393782017,1762981518476,-204.0,0.00046879,120]
[393782019,1762981518520,-174.56634687,0.00048877,30]
[393782021,1762981518563,-2000.0,0.00048924,21]
[393782024,1762981518607,-174.56634687,0.00049507,30]
[393782025,1762981518648,-500.0,0.00049973,10]
[393782026,1762981518686,-500.0,0.00049973,10]
[393782027,1762981518726,-564.40028884,0.00049973,10]
[393782028,1762981518763,-159.12522271,0.00049973,10]
[393782031,1762981518805,-500.0,0.00049973,10]
[393782033,1762981518846,-501.28912964,0.00049973,10]
[393782034,1762981518887,-599.47892329,0.00049973,10]
[393782037,1762981518930,-577.21634025,0.00049973,10]
[393782039,1762981518972,-500.0,0.00049973,7]
[393782041,1762981519013,-500.0,0.00049973,10]
[393782043,1762981519050,-500.0,0.00049973,10]
[393782045,1762981519085,-500.0,0.00049973,10]
[393782047,1762981519120,-500.67658786,0.00049973,10]
[393782049,1762981519156,-500.0,0.00049973,10]
[393782051,1762981519195,-500.0,0.00049973,10]
[393782053,1762981519236,-500.0,0.00049973,10]
[393782055,1762981519276,-501.82660943,0.00049973,10]
[393782057,1762981519322,-157.20370354,0.00049973,10]
[393782059,1762981519361,-500.0,0.00049973,10]
[393782060,1762981519402,-519.38600451,0.00049973,10]
[393782063,1762981519445,-500.0,0.00049973,10]
[393782064,1762981519484,-500.0,0.00049973,10]
[393782067,1762981519523,-500.0,0.00049973,10]
[393782069,1762981519567,-500.8632473,0.00049973,7]
[393782071,1762981519611,-500.0,0.00049973,10]
[393782072,1762981519655,-500.0,0.00049973,10]
[393782075,1762981519700,-500.0,0.00049973,10]
[393782077,1762981519742,-500.0,0.00049973,10]
[393782078,1762981519783,-500.0,0.00049973,10]
[393782080,1762981519825,-500.0,0.00049973,10]
[393782083,1762981519868,-151.0,0.00049973,120]
[393782084,1762981519912,-151.0,0.00049973,120]
[393782086,1762981519956,-255.672807,0.00049973,120]
[393782088,1762981520001,-783.975635,0.00049973,120]
[393782090,1762981520042,-783.975635,0.00049973,120]
[393782091,1762981520083,-783.975635,0.00049973,120]
[393782092,1762981520122,-783.975635,0.00049973,120]
[393782093,1762981520160,-92406.92329854,0.0005,120]
[393782094,1762981520199,-151.0,0.0005,120]
[393782095,1762981520237,-151.0,0.0005,120]
[393782096,1762981520277,-783.975635,0.0005,120]
[393782097,1762981520320,-783.975635,0.0005,120]
[393782098,1762981520360,-783.975635,0.0005,120]
[393782099,1762981520404,-783.975635,0.0005,120]
[393782100,1762981520447,-151.0,0.0005,120]
[393782101,1762981520587,-151.0,0.0005,120]
[393782102,1762981520628,-151.0,0.0005,120]
[393782103,1762981520668,-268.328977,0.0005,120]
[393782104,1762981520710,-1998.24333978,0.0005,120]
[393782105,1762981520750,-500.0,0.0005015,10]
[393782106,1762981520790,-500.0,0.0005015,10]
[393782107,1762981520830,-500.0,0.0005015,10]
[393782108,1762981520870,-500.0,0.0005015,10]
[393782109,1762981520911,-174.56634687,0.00050164,30]
[393782110,1762981520953,-1000.0,0.00050521,10]
[393782111,1762981520997,-1000.0,0.00050521,10]
[393782112,1762981521039,-669.43231597,0.00050521,10]
[393782113,1762981521079,-1000.0,0.00050521,7]
[393782114,1762981521118,-1000.0,0.00050521,10]
[393782115,1762981521163,-1004.77391435,0.00050521,10]
[393782116,1762981521212,-1003.01551315,0.00050521,10]
[393782117,1762981521259,-259.39966572,0.00050521,10]
[393782118,1762981521306,-500.0,0.00050521,10]
[393782119,1762981521352,-500.0,0.00050521,10]
[393782120,1762981521405,-500.0,0.00050521,10]
[393782121,1762981521456,-500.0,0.00050521,10]
[393782122,1762981521501,-500.0,0.00050521,10]
[393782123,1762981521547,-500.0,0.00050521,10]
[393782124,1762981521591,-500.0,0.00050521,10]
[393782125,1762981521633,-500.0,0.00050521,10]
[393782126,1762981521676,-159.42078263,0.00050521,10]
[393782127,1762981521718,-500.0,0.00050521,10]
[393782128,1762981521761,-500.0,0.00050698,10]
[393782129,1762981521803,-503.12894742,0.00050698,10]
[393782130,1762981521845,-174.56634687,0.00050822,30]
[393782131,1762981521886,-500.0,0.00051068,10]
[393782132,1762981521926,-209.0,0.0005119,30]
[393782133,1762981521967,-154.43,0.000512,14]
[393782134,1762981522006,-174.56634687,0.00051479,30]
[393782135,1762981522048,-2000.0,0.00051491,21]
[393782136,1762981522359,193.64967185,0.0004023,120]
[393782137,1762981537895,1000.0,0.0005205,120]
[393782138,1762981537945,1394.93,0.000428,14]
[393782182,1762981832353,-150.0,0.00027626,2]
[393782184,1762981832363,-150.0,0.00030138,2]
[393782186,1762981832372,-150.0,0.00032649,2]
[393782187,1762981832382,-150.0,0.00035161,2]
[393782189,1762981832394,-870.62584,0.0003638,2]
[393782190,1762981832403,-714.9111874,0.00036685,20]
[393782192,1762981832414,-607.51500014,0.00036685,20]
[393782239,1762981838149,-677.57381246,0.00036685,20]
[393782240,1762981838159,-150.0,0.00037672,2]
[393782241,1762981838168,-172.42618754,0.0003869,2]
[393782242,1762981838180,-6.29154514,0.0003869,2]
[393782244,1762981838190,-150.0,0.00040169,2]
[393782245,1762981838199,-400.18833243,0.0004018,2]
[393782247,1762981838208,-2467.40047143,0.00040332,2]
[393782250,1762981838219,-18590.05173777,0.00040332,2]
[393782252,1762981838229,-582.6849116,0.00040332,2]
[393782254,1762981838239,-422.4760147,0.00040332,2]
[393782255,1762981838248,-1089.36771698,0.00042436,4]
[393782258,1762981838267,-690.5144778,0.00042525,2]
[393782261,1762981838281,-648.47608085,0.00042525,2]
[393782263,1762981838290,-3965.43673784,0.00042659,28]
[393782265,1762981838301,-836.65928246,0.000427,2]
[393782267,1762981838311,-30109.78007037,0.0004276,3]
[393782269,1762981838323,-287.48678427,0.0004276,3]
[393782295,1762981840364,-82436.49994517,0.0004276,3]
[393782308,1762981840479,-0.00436183,0.0004276,3]
[393782310,1762981840489,-24883.88540781,0.0004276,3]
[393782438,1762981843380,-569.8539678,0.0004276,3]
[393782439,1762981843396,-8821.93852805,0.0004276,3]
[393782481,1762981846587,-1242.48199279,0.0004276,3]
[393782482,1762981847343,-532.26000077,0.0004276,3]
[393784456,1762982864364,33399.48717384,0.00018,2]
[393784475,1762982901286,287.58459653,0.0001,2]
[393784479,1762982906462,25000.0,0.00017,2]
[393784480,1762982906487,7552.29111002,0.00017,2]
[393784483,1762982911121,1000.0,0.0001,2]
[393784486,1762982914379,313.0,0.0002458,2]
[393784489,1762982918819,25000.0,0.00024142,2]
[393784490,1762982918846,24687.0,0.00024142,2]
[393784491,1762982918871,16160.12429345,0.00024142,2]
[393784492,1762982918897,23872.80027097,0.00024142,2]
[393784509,1762982971879,165.416709,0.00013699,2]
[393784510,1762982972222,165.416709,0.00020187,2]
[393784511,1762982972436,165.416709,0.00026676,2]
[393784512,1762982972652,165.416709,0.00033165,2]
[393784580,1762983032492,-250.0,0.00037797,2]
[393784582,1762983032502,-163.5492158,0.00037969,2]
[393784584,1762983032512,-380.15533727,0.0003903,2]
[393784586,1762983032521,-115.02795953,0.00039654,2]
[393784588,1762983032532,-50.38874947,0.00039654,2]
[393784590,1762983032542,-500.0,0.0004,120]
[393784592,1762983032551,-165.21492199,0.00041469,5]
[393784595,1762983032563,-492.59946567,0.00041469,5]
[393784597,1762983032574,-542.18561234,0.00041469,5]
[393784599,1762983032583,-75.95271557,0.0004147,5]
[393784867,1762983040617,-1124.04728443,0.0004147,5]
[393784869,1762983040626,-300.0,0.00041566,5]
[393784871,1762983040636,-482.0,0.00041567,5]
[393784873,1762983040645,-418.0,0.00041567,5]
[393784875,1762983040654,-300.0,0.00041567,5]
[393784877,1762983040663,-500.0,0.00041568,31]
[393784878,1762983040674,-544.65495327,0.00041568,31]
[393784880,1762983040683,-500.0,0.00041568,31]
[393784881,1762983040692,-500.0,0.00041568,31]
[393784883,1762983040703,-447.68474072,0.00041568,31]
[393784884,1762983040711,-467.50539441,0.00041568,31]
[393784885,1762983040721,-28159.26407559,0.00041569,2]
[393784886,1762983040733,-242.46700799,0.00041571,4]
[393784887,1762983040743,-969.86803196,0.00041571,4]
[393784888,1762983040752,-429.36865998,0.00041758,2]
[393784889,1762983040762,-3456.61090278,0.0004199,2]
[393785150,1762983046732,-505.02073508,0.0004199,2]
[393785202,1762983712097,250.0,0.0003669,120]
[393785341,1762984174676,270.09694,0.00025205,2]
[393785361,1762984232614,-445.0788873,0.00035247,3]
[393785368,1762984232698,-754.9211127,0.00035247,3]
[393785370,1762984232707,-1200.0,0.00035248,3]
[393785372,1762984232716,-300.0,0.00035248,3]
[393785374,1762984232725,-244.0,0.00035248,3]
[393785376,1762984232735,-300.0,0.00035248,2]
[393785378,1762984232745,-311.92007789,0.00035249,2]
[393785380,1762984232754,-561.4561402,0.00035249,2]
[393785382,1762984232763,-998.14424924,0.00035249,2]
[393785384,1762984232772,-1559.60038943,0.00035249,2]
[393785386,1762984232782,-535.20366156,0.00035249,2]
[393785389,1762984232791,-963.36659081,0.00035249,2]
[393785423,1762984232955,-1712.651717,0.00035249,2]
[393785425,1762984232965,-2673.3422895,0.00035249,2]
[393785427,1762984232974,-500.0,0.000353,5]
[393785429,1762984232983,-500.0,0.000353,5]
[393785431,1762984232991,-500.0,0.000353,2]
[393785432,1762984233000,-554.09320256,0.00036272,2]
[393785433,1762984233009,-2216.37281023,0.00036272,2]
[393785434,1762984233018,-400.18833243,0.00037095,2]
[393785436,1762984233027,-500.0,0.00037103,15]
[393785440,1762984233036,-500.0,0.00037103,15]
[393785442,1762984233046,-500.0,0.00037103,15]
[393785444,1762984233055,-588.59062016,0.00037103,15]
[393785446,1762984233064,-379.87491461,0.00037103,15]
[393785448,1762984233073,-500.0,0.00037103,15]
[393785450,1762984233082,-500.0,0.00037103,15]
[393785452,1762984233092,-500.0,0.00037103,15]
[393785454,1762984233104,-6374.51544641,0.00037104,2]
[393785456,1762984233116,-21843.96433526,0.00037104,2]
[393785458,1762984233126,-1027.6,0.00037104,2]
[393785460,1762984233139,-852.41920799,0.00037104,2]
[393785462,1762984233150,-2200.10207672,0.00037104,2]
[393785465,1762984233162,-282.34546992,0.00037104,2]
[393785467,1762984233174,-395.15453008,0.00037104,2]
[393785469,1762984233186,-17023.89893362,0.00037104,2]
[393785471,1762984233195,-230.46262194,0.00037516,2]
[393785473,1762984233204,-266.99097381,0.00037516,2]
[393785475,1762984233213,-192.60682675,0.0003818,15]
[393785477,1762984233223,-322.92902181,0.00038181,2]
[393785479,1762984233233,-1290.42437116,0.00038181,2]
[393785481,1762984233242,-4002.51474143,0.0004,30]
[393785627,1762984238577,-2919.54800375,0.0004,30]
[393785628,1762984238587,-160.0,0.0004105,2]
[393785629,1762984238597,-65.45199625,0.00041654,2]
[393785630,1762984238610,-707.41159172,0.00041654,2]
[393785631,1762984238619,-453.65898714,0.00041654,2]
[393785632,1762984238629,-816.58617686,0.00041654,2]
[393785633,1762984238639,-196.62450823,0.00041654,2]
[393785634,1762984238649,-19.13523635,0.00041654,2]
[393785912,1762984247249,-641.0,0.00041654,2]
[393785914,1762984271020,228.77521029,0.00018343,2]
[393785943,1762984693690,229.23276072,0.000336,2]
[393785944,1762984720569,-408.80768446,0.000353,5]
[393785974,1762985431760,-591.9447465,0.00037207,2]
[393785975,1762985431779,-6.26550122,0.00037593,2]
[393785976,1762985431819,-706.20499466,0.00037593,2]
[393785978,1762985431830,-294.26029132,0.00038595,2]
[393785980,1762985431839,-173.627836,0.00038766,60]
[393785982,1762985431848,-999.0,0.00038946,2]
[393785984,1762985431857,-930.210128,0.00038986,2]
[393785986,1762985431867,-108.14089566,0.00041301,2]
[393786014,1762985437771,-228.15658014,0.00041301,2]
[393786015,1762985437784,-2703.52211972,0.00041639,2]
[393786016,1762985437794,-1450.2570501,0.00041654,2]
[393786017,1762985437804,-151.0,0.00042,19]
[393786018,1762985437819,-256.18389862,0.00042177,4]
[393786019,1762985437834,-1024.73559449,0.00042177,4]
[393786020,1762985437844,-4514.7833138,0.00042263,2]
[393786021,1762985437853,-4218.46778931,0.00042376,28]
[393786022,1762985437863,-500.0,0.00042473,10]
[393786023,1762985437873,-500.0,0.00042473,10]
[393786024,1762985437882,-500.0,0.00042473,10]
[393786025,1762985437891,-408.80768446,0.00042473,10]
[393786026,1762985437902,-503.61024689,0.00042473,10]
[393786027,1762985437912,-500.0,0.00042473,3]
[393786028,1762985437922,-500.0,0.00042473,10]
[393786029,1762985437933,-501.46042996,0.00042473,7]
[393786030,1762985437943,-150.0,0.00042473,120]
[393786031,1762985437952,-30096.10805214,0.00042476,3]
[393786040,1762985440049,-5000.0,0.00042476,3]
[393786042,1762985440060,-322.5356089,0.00042476,3]
[393786048,1762985440110,-828.592002,0.00042476,3]
[393786439,1762985458204,230.9208139,0.00018343,2]
[393786440,1762985458812,230.9208139,0.00026062,2]
[393786441,1762985459470,230.9208139,0.00033781,2]
[393786444,1762985490531,157.273859,0.00031763,20]
[393786525,1762985553326,157.273859,0.00031763,20]
[393786529,1762985589813,158.03026253,0.00018343,2]
[393786530,1762985595875,206.58340524,0.00018343,2]
[393786531,1762985596488,206.58340524,0.00033594,2]
[393786533,1762985641847,5697.66,0.0001,2]
[393786534,1762985642507,271.15161033,0.000101,2]
[393786535,1762985642532,5426.50838967,0.000101,2]
[393786536,1762985642857,5697.66,0.000102,2]
[393786537,1762985643192,5440.81344451,0.000102,2]
[393786538,1762985643217,256.84655549,0.000102,2]
[393786539,1762985643520,5697.66,0.000103,2]
[393786540,1762985643829,5697.66,0.000104,2]
[393786541,1762985644135,5697.66,0.000105,2]
[393786542,1762985644518,5697.66,0.000106,2]
[393786543,1762985644799,1952.51344451,0.000107,2]
[393786544,1762985644825,1127.19972903,0.000107,2]
[393786545,1762985644851,2617.94682646,0.000107,2]
[393786546,1762985645077,5697.66,0.000107,2]
[393786547,1762985645351,5697.66,0.000108,2]
[393786548,1762985645650,5697.66,0.000109,2]
[393786549,1762985645934,5289.07317354,0.00011,2]
[393786550,1762985645959,408.58682646,0.00011,2]
[393786551,1762985646242,5697.66,0.000111,2]
[393786552,1762985646591,5697.66,0.000111,2]
[393786553,1762985647219,5697.66,0.000112,2]
[393786554,1762985647380,500.0,0.000113,2]
[393786555,1762985647409,5197.66,0.000113,2]
[393786556,1762985647686,2300.77317354,0.000114,2]
[393786557,1762985647719,3396.88682646,0.000114,2]
[393786558,1762985648019,5697.66,0.000115,2]
[393786559,1762985648286,5697.66,0.000116,2]
[393786560,1762985648589,5697.66,0.000116,2]
[393786561,1762985648890,5697.66,0.000117,2]
[393786562,1762985649174,500.0,0.000118,2]
[393786563,1762985649204,5197.66,0.000118,2]
[393786564,1762985649482,5697.66,0.000119,2]
[393786565,1762985649790,5697.66,0.00012,2]
[393786566,1762985650079,5697.66,0.00012,2]
[393786567,1762985651032,2779.37401068,0.000121,2]
[393786568,1762985651056,2918.28598932,0.000121,2]
[393786569,1762985651353,235.79722536,0.000122,2]
[393786570,1762985651378,5461.86277464,0.000122,2]
[393786571,1762985651649,5697.66,0.000123,2]
[393786572,1762985651928,5697.66,0.000124,2]
[393786573,1762985652238,5224.53123604,0.000124,2]
[393786574,1762985652266,215.85310535,0.000124,2]
[393786575,1762985652290,257.27565861,0.000124,2]
[393786576,1762985652533,5697.66,0.000125,2]
[393786577,1762985652915,5697.66,0.000126,2]
[393786578,1762985653203,5697.66,0.000127,2]
[393786579,1762985653491,153.33703227,0.000128,2]
[393786580,1762985653517,5544.32296773,0.000128,2]
[393786581,1762985654458,2105.42137366,0.000129,2]
[393786582,1762985654485,3592.23862634,0.000129,2]
[393786583,1762985654810,5697.66,0.000129,2]
[393786584,1762985655127,5697.66,0.00013,2]
[393786585,1762985655454,5697.66,0.000131,2]
[393786586,1762985655747,5697.66,0.000132,2]
[393786587,1762985656146,5697.66,0.000133,2]
[393786588,1762985656449,5697.66,0.000133,2]
[393786589,1762985656743,5697.66,0.000134,2]
[393786590,1762985657022,3332.41355576,0.000135,2]
[393786591,1762985657047,2365.24644424,0.000135,2]
[393786592,1762985657325,5697.66,0.000136,2]
[393786593,1762985657620,5697.66,0.000137,2]
[393786594,1762985658030,5697.66,0.000138,2]
[393786595,1762985658192,5541.77355576,0.000138,2]
[393786596,1762985658217,155.88644424,0.000138,2]
[393786597,1762985658534,5697.66,0.000139,2]
[393786598,1762985658873,5697.66,0.00014,2]
[393786599,1762985701803,403.17,0.0001,2]
[393786600,1762985702114,403.17,0.000101,2]
[393786601,1762985702393,403.17,0.000102,2]
[393786602,1762985702689,403.17,0.000102,2]
[393786603,1762985703083,403.17,0.000103,2]
[393786604,1762985703170,322.87,0.00036718,20]
[393786605,1762985703371,403.17,0.000104,2]
[393786606,1762985703655,403.17,0.000105,2]
[393786607,1762985703957,403.17,0.000106,2]
[393786608,1762985704305,403.17,0.000107,2]
[393786609,1762985704687,403.17,0.000107,2]
[393786610,1762985705217,403.17,0.000108,2]
[393786611,1762985705629,403.17,0.000109,2]
[393786612,1762985705966,403.17,0.00011,2]
[393786613,1762985706295,403.17,0.000111,2]
[393786614,1762985706586,403.17,0.000111,2]
[393786615,1762985706912,403.17,0.000112,2]
[393786616,1762985707283,403.17,0.000113,2]
[393786617,1762985708236,403.17,0.000114,2]
[393786618,1762985708566,403.17,0.000115,2]
[393786619,1762985708920,403.17,0.000116,2]
[393786620,1762985709252,403.17,0.000116,2]
[393786621,1762985709537,403.17,0.000117,2]
[393786622,1762985709825,403.17,0.000118,2]
[393786623,1762985710127,403.17,0.000119,2]
[393786624,1762985710414,403.17,0.00012,2]
[393786625,1762985710468,491.91176246,0.00036718,20]
[393786626,1762985710767,403.17,0.00012,2]
[393786627,1762985711052,403.17,0.000121,2]
[393786628,1762985711426,403.17,0.000122,2]
[393786629,1762985711773,403.17,0.000123,2]
[393786630,1762985712086,403.17,0.000124,2]
[393786631,1762985712370,315.51331446,0.00036718,20]
[393786632,1762985712405,403.17,0.000124,2]
[393786633,1762985712689,403.17,0.000125,2]
[393786634,1762985712985,403.17,0.000126,2]
[393786635,1762985713339,144.18355576,0.000127,2]
[393786636,1762985713365,258.98644424,0.000127,2]
[393786637,1762985713626,403.17,0.000128,2]
[393786638,1762985713913,403.17,0.000129,2]
[393786639,1762985714212,403.17,0.000129,2]
[393786640,1762985714517,403.17,0.00013,2]
[393786641,1762985714809,403.17,0.000131,2]
[393786642,1762985715100,403.17,0.000132,2]
[393786643,1762985716058,403.17,0.000133,2]
[393786644,1762985716410,403.17,0.000133,2]
[393786645,1762985716819,403.17,0.000134,2]
[393786646,1762985716876,180.30998352,0.00036718,60]
[393786647,1762985716990,403.17,0.000135,2]
[393786648,1762985717379,403.17,0.000136,2]
[393786649,1762985717749,203.1269617,0.00036718,20]
[393786650,1762985717781,403.17,0.000137,2]
[393786651,1762985718144,403.17,0.000138,2]
[393786652,1762985718440,403.17,0.000138,2]
[393786653,1762985718752,403.17,0.000139,2]
[393786654,1762985761890,201.46,0.0001,2]
[393786655,1762985762197,201.46,0.00014,2]
[393786656,1762985782369,200.0,0.00036718,30]
[393786671,1762985890819,454.5,0.00036718,20]
[393786686,1762986080884,200.0,0.00036718,30]
[393786687,1762986103178,907.10223058,0.00036718,120]
[393786688,1762986162563,400.18833243,0.0003288,120]
[393786689,1762986228996,454.5,0.00036718,20]
[393786691,1762986239629,491.91176246,0.00036718,20]
[393786692,1762986242689,203.1269617,0.00036718,20]
[393786693,1762986242912,180.30998352,0.00036718,60]
[393786694,1762986243427,315.51331446,0.00036718,20]
[393786700,1762986315166,546.0884583,0.00036712,120]
[393786702,1762986367220,463.94754082,0.00036712,120]
[393786704,1762986380693,200.0,0.00036712,30]
[393786705,1762986390253,200.80416016,0.00036712,20]
[393786714,1762986443136,1883599.26466302,0.00036712,20]
[393786715,1762986443213,251.63142363,0.00036712,30]
[393786718,1762986456178,230.0639347,0.00036712,30]
[393786719,1762986456269,397.32637543,0.00036712,120]
[393786721,1762986457771,284.53988821,0.00036712,120]
[393786723,1762986461120,165.82163755,0.00036712,30]
[393786726,1762986471930,50000.0,0.00025,5]
[393786727,1762986471958,40148.49150334,0.00025,5]
[393786728,1762986483152,202.24560565,0.00036712,120]
[393786729,1762986484299,579.21703518,0.00036712,120]
[393786732,1762986489784,620.0,0.00036712,120]
[393786733,1762986490777,197.3168612,0.00036712,60]
[393786734,1762986493832,187.84476659,0.00036712,120]
[393786735,1762986499941,340.75107497,0.00036712,120]
[393786736,1762986501488,367.3658564,0.00036712,30]
[393786737,1762986502579,228.05713138,0.00036712,30]
[393786738,1762986502746,240.82074905,0.00036712,120]
[393786739,1762986502833,169.46568872,0.00036712,20]
[393786740,1762986502996,2207.60227005,0.0002,2]
[393786742,1762986503967,250.22291456,0.00036712,120]
[393786743,1762986504733,266.12203794,0.00036712,30]
[393786744,1762986505111,445.95946214,0.00036712,90]
[393786745,1762986505886,349.77977063,0.00036712,120]
[393786746,1762986506914,276.84351058,0.00036712,30]
[393786747,1762986508737,640.15055654,0.00036712,120]
[393786748,1762986509404,219.37597279,0.00036712,30]
[393786749,1762986509548,217.80293613,0.00036712,30]
[393786750,1762986509762,677.87070072,0.00036712,120]
[393786752,1762986510820,572.90034238,0.00036712,120]
[393786753,1762986510888,223.07982874,0.00036712,120]
[393786754,1762986511808,327.50034741,0.00036712,120]
[393786755,1762986512240,183.66064651,0.00036712,30]
[393786756,1762986513092,674.2197586,0.00036712,20]
[393786757,1762986513154,247.5897438,0.00036712,60]
[393786758,1762986513254,293.45482922,0.00036712,60]
[393786759,1762986513321,588.97962303,0.00036712,60]
[393786760,1762986513419,165.52071512,0.00036712,120]
[393786761,1762986513489,323.67105071,0.00036712,30]
[393786762,1762986513560,167.95775575,0.00036712,120]
[393786763,1762986514433,192.11362894,0.00036712,30]
[393786764,1762986514491,338.47382738,0.00036712,30]
[393786765,1762986515025,226.67637458,0.00036712,120]
[393786767,1762986515340,293.16608493,0.00036712,60]
[393786768,1762986515397,386.27838307,0.00036712,120]
[393786769,1762986515954,1139.21971971,0.00036712,120]
[393786770,1762986516074,235.89830807,0.00036712,120]
[393786772,1762986516804,276.42291872,0.00036712,120]
[393786773,1762986516877,286.48402812,0.00036712,120]
[393786774,1762986517144,355.62158726,0.00036712,120]
[393786775,1762986517771,505.91242178,0.00036712,90]
[393786776,1762986518132,364.29924066,0.00036712,120]
[393786779,1762986518734,165.75838593,0.00036712,30]
[393786780,1762986519391,161.73964522,0.00036712,120]
[393786781,1762986519454,401.88814507,0.00036712,30]
[393786782,1762986519837,344.30920852,0.00036712,60]
[393786783,1762986520010,505.95333175,0.00036712,30]
[393786791,1762986544807,280.25877849,0.00036712,120]
[393786793,1762986547627,195.0,0.00036709,20]
[393786801,1762986603296,189.30851417,0.00036709,60]
[393786802,1762986603354,202.38704948,0.00036709,60]
[393786803,1762986603425,205.57221342,0.00036709,120]
[393786972,1762986637899,-300.0,0.00025998,2]
[393786974,1762986637908,-1200.0,0.00025998,2]
[393786976,1762986637917,-500.0,0.00025998,2]
[393786978,1762986637926,-500.0,0.00025998,2]
[393786980,1762986637935,-500.0,0.00025998,2]
[393786982,1762986637945,-218.4045101,0.00025998,2]
[393786984,1762986637955,-281.5954899,0.00025998,2]
[393786986,1762986637965,-500.0,0.00025998,2]
[393786988,1762986637975,-500.0,0.00025998,2]
[393786990,1762986637985,-500.0,0.00025998,2]
[393786992,1762986637994,-500.0,0.00025998,2]
[393786994,1762986638004,-500.0,0.00025998,2]
[393786996,1762986638014,-500.0,0.00025998,2]
[393786998,1762986638023,-500.0,0.00025998,2]
[393787000,1762986638033,-500.0,0.00025998,2]
[393787002,1762986638043,-500.0,0.00025998,2]
[393787004,1762986638053,-500.0,0.00025998,2]
[393787006,1762986638063,-500.0,0.00025998,2]
[393787008,1762986638072,-500.0,0.00025998,2]
[393787010,1762986638082,-500.0,0.00025998,2]
[393787012,1762986638092,-500.0,0.00025998,2]
[393787014,1762986638101,-500.0,0.00025998,2]
[393787016,1762986638110,-500.0,0.00025998,2]
[393787018,1762986638119,-500.0,0.00025998,2]
[393787020,1762986638128,-500.0,0.00025998,2]
[393787022,1762986638138,-500.0,0.00025998,2]
[393787023,1762986638147,-500.0,0.00025998,2]
[393787025,1762986638156,-500.0,0.00025998,2]
[393787027,1762986638166,-152.7471059,0.00025998,2]
[393787029,1762986638176,-500.0,0.00025998,2]